bitfinex/quotes_SOLUSD_20230404
["timestamp","ask_amount","ask_price","bid_price","bid_amount"]
[1680615656681,20.0,20.929,20.915,10.5606642]
[1680615656876,20.0,20.929,20.9,152.43805371]
[1680615657276,20.0,20.929,20.905,7.12336208]
[1680615657582,26.96,20.92,20.904,41.64481818]
[1680615658284,26.96,20.92,20.904,48.76818026]
[1680615658473,53.89,20.92,20.89,27.04]
[1680615658881,53.89,20.92,20.892,45.7301939]
[1680615659086,0.35092039,20.919,20.892,87.37501208]
[1680615659276,20.35092039,20.919,20.895,8.24194399]
[1680615659687,0.35092039,20.919,20.895,8.24194399]
[1680615660482,0.35092039,20.919,20.895,22.3818905]
[1680615660680,0.35092039,20.919,20.895,103.06557595]
[1680615660989,0.35092039,20.919,20.896,4.38141809]
[1680615661173,26.93,20.92,20.897,20.0]
[1680615661375,26.93,20.92,20.897,72.35988728]
[1680615661689,26.93,20.92,20.898,59.48324936]
[1680615661990,26.93,20.92,20.899,52.35988728]
[1680615662191,40.84,20.92,20.9,20.0]
[1680615662386,40.84,20.92,20.901,17.0]
[1680615662892,40.84,20.92,20.902,20.0]
[1680615663097,40.84,20.92,20.903,17.0]
[1680615664087,0.35092039,20.919,20.903,17.0]
[1680615664399,20.35092039,20.919,20.903,17.0]
[1680615664786,20.35092039,20.919,20.902,20.0]
[1680615664985,20.35092039,20.919,20.901,20.0]
[1680615665186,0.35092039,20.919,20.901,20.0]
[1680615666079,40.84,20.92,20.901,20.0]
[1680615666383,37.0,20.919,20.901,20.0]
[1680615666587,37.0,20.919,20.895,131.277]
[1680615667300,81.41,20.91,20.895,111.277]
[1680615668205,20.0,20.909,20.895,111.277]
[1680615668389,81.41,20.91,20.895,111.277]
[1680615668583,40.57,20.91,20.895,111.277]
[1680615671005,40.57,20.91,20.896,17.0]
[1680615671196,20.0,20.909,20.896,17.0]
[1680615671399,20.0,20.909,20.895,111.277]
[1680615672097,20.3477192,20.909,20.895,111.277]
[1680615672686,20.3477192,20.909,20.896,17.0]
[1680615672889,20.3477192,20.909,20.895,111.277]
[1680615675320,0.3477192,20.909,20.895,111.277]
[1680615676014,20.3477192,20.909,20.895,111.277]
[1680615676606,20.0,20.908,20.895,111.277]
[1680615677018,20.34739891,20.908,20.895,111.277]
[1680615677216,20.0,20.908,20.895,111.277]
[1680615678030,20.0,20.907,20.895,111.277]
[1680615678212,20.0,20.906,20.895,111.277]
[1680615678613,20.0,20.906,20.889,118.874]
[1680615678815,20.0,20.906,20.89,113.1934]
[1680615679019,20.0,20.908,20.891,20.0]
[1680615679327,0.34707859,20.907,20.892,17.0]
[1680615679516,0.34707859,20.907,20.891,4.5]
[1680615679719,0.34707859,20.907,20.89,113.1934]
[1680615679919,0.34707859,20.907,20.891,20.0]
[1680615680114,20.0,20.907,20.891,20.0]
[1680615681816,20.0,20.907,20.892,17.0]
[1680615682017,20.0,20.907,20.893,20.0]
[1680615683132,19.132,20.908,20.893,20.0]
[1680615683516,19.132,20.908,20.891,20.0]
[1680615683909,20.0,20.907,20.891,20.0]
[1680615685414,19.132,20.908,20.891,20.0]
[1680615685733,81.41,20.91,20.891,20.0]
[1680615686035,20.0,20.909,20.892,17.0]
[1680615686233,20.0,20.909,20.893,20.0]
[1680615686432,20.0,20.909,20.893,17.5]
[1680615686929,20.0,20.909,20.89,113.1934]
[1680615687128,20.0,20.909,20.891,17.0]
[1680615687631,20.0,20.909,20.89,113.1934]
[1680615687828,59.7,20.91,20.891,17.0]
[1680615688011,20.0,20.909,20.891,17.0]
[1680615688215,0.34739891,20.908,20.89,113.1934]
[1680615688416,0.34739891,20.908,20.891,20.0]
[1680615689832,20.0,20.907,20.891,20.0]
[1680615690229,20.0,20.909,20.891,20.0]
[1680615691116,20.0,20.909,20.892,17.0]
[1680615692138,0.34739891,20.908,20.892,17.0]
[1680615692732,0.34739891,20.908,20.891,20.0]
[1680615692940,20.0,20.907,20.891,20.0]
[1680615693119,0.34739891,20.908,20.891,20.0]
[1680615696442,17.34739891,20.908,20.891,20.0]
[1680615696941,40.0,20.907,20.89,113.1934]
[1680615697934,17.0,20.906,20.89,113.1934]
[1680615698150,20.0,20.905,20.89,113.1934]
[1680615698450,20.0,20.899,20.881,7.12336208]
[1680615698744,20.0,20.899,20.873,7.12336208]
[1680615698950,20.0,20.899,20.884,38.284181]
[1680615699138,40.84,20.89,20.884,38.284181]
[1680615700328,81.68,20.89,20.884,38.284181]
[1680615701131,0.34130762,20.889,20.884,38.284181]
[1680615702732,20.34130762,20.889,20.884,38.284181]
[1680615703650,0.34130762,20.889,20.884,38.284181]
[1680615704850,20.34130762,20.889,20.884,38.284181]
[1680615706136,17.0,20.888,20.884,38.284181]
[1680615706548,20.34130762,20.889,20.884,38.284181]
[1680615707537,0.34130762,20.889,20.884,38.284181]
[1680615707937,81.68,20.9,20.884,38.284181]
[1680615708143,0.34098672,20.888,20.885,20.0]
[1680615708342,0.34098672,20.888,20.885,37.0]
[1680615709037,40.84,20.9,20.885,17.0]
[1680615709350,40.84,20.9,20.884,38.284181]
[1680615709351,81.41,20.9,20.884,38.284181]
[1680615709555,19.141,20.897,20.884,38.284181]
[1680615709751,20.0,20.896,20.884,38.284181]
[1680615709934,20.0,20.895,20.884,38.284181]
[1680615710138,0.30653502,20.887,20.884,38.284181]
[1680615711264,40.84,20.89,20.884,38.284181]
[1680615711460,81.68,20.89,20.884,38.284181]
[1680615711639,20.0,20.888,20.884,38.284181]
[1680615711840,81.68,20.89,20.884,38.284181]
[1680615713148,0.68269546,20.889,20.884,38.284181]
[1680615713740,20.68269546,20.889,20.884,38.284181]
[1680615714652,20.0,20.887,20.884,38.284181]
[1680615715355,20.0,20.887,20.884,2.856581]
[1680615715558,20.0,20.885,20.884,2.856581]
[1680615717356,37.0,20.885,20.884,2.856581]
[1680615718372,20.0,20.885,20.884,2.856581]
[1680615719343,20.0,20.889,20.884,2.856581]
[1680615719559,20.0,20.887,20.884,2.856581]
[1680615719745,20.0,20.886,20.884,2.856581]
[1680615719943,20.0,20.892,20.884,2.856581]
[1680615720557,20.0,20.889,20.884,2.856581]
[1680615721759,20.0,20.889,20.871,20.0]
[1680615722164,20.0,20.889,20.871,19.0]
[1680615722662,20.0,20.889,20.87,20.0]
[1680615722864,20.0,20.889,20.871,17.0]
[1680615723053,20.0,20.892,20.871,17.0]
[1680615723249,40.84,20.89,20.871,17.0]
[1680615723445,40.84,20.89,20.872,27.12336208]
[1680615723757,40.84,20.89,20.873,17.0]
[1680615724453,40.84,20.89,20.874,20.0]
[1680615724653,14.50001961,20.893,20.875,17.0]
[1680615724970,19.139,20.899,20.876,7.12336208]
[1680615725268,19.139,20.899,20.877,17.0]
[1680615725469,20.0,20.897,20.879,20.0]
[1680615725855,20.0,20.897,20.88,17.0]
[1680615726163,20.0,20.895,20.88,17.0]
[1680615726352,20.0,20.895,20.878,110.9452]
[1680615726552,20.0,20.895,20.875,114.7601]
[1680615726553,20.0,20.897,20.876,20.0]
[1680615726875,20.0,20.896,20.876,27.12336208]
[1680615727055,100.819,20.9,20.876,27.12336208]
[1680615727256,20.0,20.899,20.876,27.12336208]
[1680615727558,20.0,20.898,20.876,7.12336208]
[1680615727757,20.0,20.898,20.877,17.0]
[1680615728166,17.0,20.897,20.877,17.0]
[1680615728370,39.142,20.896,20.878,115.9424]
[1680615728850,39.142,20.896,20.879,17.0]
[1680615729170,39.142,20.896,20.879,136.0836]
[1680615729355,39.142,20.896,20.879,119.0836]
[1680615729555,20.0,20.895,20.879,119.0836]
[1680615730570,20.0,20.893,20.879,119.0836]
[1680615732578,81.1,20.89,20.862,42.67514508]
[1680615732783,40.84,20.88,20.856,82.7815]
[1680615733481,20.0,20.879,20.857,20.0]
[1680615736464,20.0,20.879,20.858,20.0]
[1680615737364,19.159,20.877,20.83,158.47777585]
[1680615737655,81.68,20.86,20.834,115.2227]
[1680615737870,81.68,20.86,20.831,30.0]
[1680615738074,81.68,20.86,20.823,119.8872]
[1680615738258,81.68,20.86,20.824,114.6403]
[1680615738455,20.0,20.859,20.825,20.0]
[1680615738765,20.0,20.859,20.837,14.24704267]
[1680615739164,19.178,20.858,20.838,20.0]
[1680615739356,17.0,20.857,20.838,20.0]
[1680615739551,19.178,20.858,20.838,20.0]
[1680615739773,19.178,20.858,20.835,14.03042919]
[1680615739971,81.68,20.86,20.836,20.0]
[1680615740271,81.68,20.86,20.837,20.0]
[1680615740459,81.68,20.86,20.838,20.0]
[1680615740784,81.68,20.86,20.837,20.0]
[1680615741371,40.84,20.86,20.837,20.0]
[1680615742075,40.84,20.86,20.838,20.0]
[1680615742378,54.6,20.86,20.839,20.0]
[1680615742682,54.6,20.86,20.84,20.0]
[1680615743057,54.6,20.86,20.838,20.0]
[1680615743262,20.0,20.859,20.838,20.0]
[1680615744074,17.0,20.858,20.836,20.0]
[1680615744281,20.0,20.859,20.837,20.0]
[1680615744577,17.0,20.857,20.838,20.0]
[1680615744760,17.0,20.858,20.838,20.0]
[1680615744952,54.6,20.86,20.838,20.0]
[1680615745371,54.6,20.86,20.839,20.0]
[1680615745558,54.6,20.86,20.84,20.0]
[1680615745964,54.6,20.86,20.841,17.0]
[1680615746286,20.0,20.859,20.841,17.0]
[1680615746660,20.0,20.859,20.824,182.2603]
[1680615746661,54.53,20.85,20.824,134.6403]
[1680615747362,20.0,20.849,20.824,134.6403]
[1680615748378,17.0,20.848,20.824,20.0]
[1680615748583,17.0,20.848,20.816,15.72194498]
[1680615748584,54.53,20.84,20.816,13.22194498]
[1680615748880,54.53,20.84,20.81,54.59]
[1680615749096,20.0,20.847,20.813,118.7305]
[1680615749377,54.53,20.85,20.82,54.53]
[1680615749878,54.53,20.85,20.821,20.0]
[1680615750081,54.53,20.85,20.821,40.0]
[1680615750287,54.53,20.85,20.823,20.0]
[1680615750575,54.53,20.85,20.824,37.0]
[1680615751186,54.53,20.85,20.825,20.0]
[1680615751484,54.53,20.85,20.826,37.0]
[1680615751682,54.53,20.85,20.826,20.0]
[1680615751866,54.53,20.85,20.827,17.0]
[1680615752066,54.53,20.85,20.828,20.0]
[1680615752257,54.53,20.85,20.829,17.0]
[1680615752464,54.53,20.85,20.83,20.0]
[1680615752664,54.53,20.85,20.831,17.0]
[1680615752865,54.53,20.85,20.828,20.0]
[1680615753367,54.53,20.85,20.824,20.0]
[1680615753585,54.53,20.85,20.824,134.824]
[1680615754176,54.53,20.85,20.825,20.0]
[1680615754479,54.53,20.85,20.826,20.0]
[1680615754870,54.53,20.85,20.827,17.0]
[1680615755074,54.53,20.85,20.826,27.12336208]
[1680615755269,54.53,20.85,20.827,20.0]
[1680615755478,229.9359,20.856,20.828,20.0]
[1680615755681,229.9359,20.856,20.828,27.12336208]
[1680615755987,54.6,20.86,20.829,7.12336208]
[1680615756285,54.6,20.86,20.831,20.0]
[1680615756586,54.6,20.86,20.832,44.12336208]
[1680615756992,54.6,20.86,20.833,7.12336208]
[1680615757195,54.6,20.86,20.835,20.0]
[1680615757392,54.6,20.86,20.836,37.0]
[1680615757687,54.53,20.87,20.836,44.12336208]
[1680615757874,54.53,20.87,20.84,54.59]
[1680615758073,54.53,20.87,20.841,20.0]
[1680615758273,54.53,20.87,20.842,17.0]
[1680615758491,54.53,20.87,20.843,20.0]
[1680615758789,54.53,20.87,20.844,17.0]
[1680615758980,54.53,20.87,20.845,20.0]
[1680615759184,54.53,20.87,20.847,20.0]
[1680615759376,54.53,20.87,20.848,17.0]
[1680615759577,54.53,20.87,20.848,44.12336208]
[1680615760787,54.53,20.87,20.848,37.0]
[1680615760983,54.53,20.87,20.849,20.0]
[1680615761178,54.53,20.87,20.85,37.0]
[1680615762684,54.53,20.87,20.851,20.0]
[1680615762878,54.53,20.87,20.852,17.0]
[1680615763275,54.53,20.87,20.85,20.0]
[1680615763276,54.53,20.87,20.851,17.0]
[1680615763494,20.0,20.875,20.851,17.0]
[1680615764077,115.3696,20.876,20.852,20.0]
[1680615764276,115.3696,20.876,20.853,17.0]
[1680615764475,115.3696,20.876,20.852,20.0]
[1680615765192,20.0,20.875,20.852,20.0]
[1680615765587,115.3696,20.876,20.852,20.0]
[1680615766289,115.3696,20.876,20.853,17.0]
[1680615766486,115.3696,20.876,20.854,20.0]
[1680615766689,115.3696,20.876,20.855,17.0]
[1680615766993,115.3696,20.876,20.856,40.0]
[1680615767377,115.3696,20.876,20.857,17.0]
[1680615767583,115.3696,20.876,20.858,20.0]
[1680615767793,115.3696,20.876,20.859,17.0]
[1680615767997,115.3696,20.876,20.86,20.0]
[1680615768294,115.3696,20.876,20.861,17.0]
[1680615768798,115.3696,20.876,20.858,20.0]
[1680615768799,115.3696,20.876,20.859,17.0]
[1680615769090,115.3696,20.876,20.86,20.0]
[1680615769296,115.3696,20.876,20.861,17.0]
[1680615770091,115.3696,20.876,20.862,20.0]
[1680615770287,115.3696,20.876,20.863,17.0]
[1680615771275,115.3696,20.876,20.86,20.0]
[1680615771495,115.3696,20.876,20.855,20.0]
[1680615771901,115.3696,20.876,20.856,7.12336208]
[1680615772086,115.3696,20.876,20.857,20.0]
[1680615772289,115.3696,20.876,20.858,20.0]
[1680615772498,115.3696,20.876,20.858,27.12336208]
[1680615772789,115.3696,20.876,20.859,17.0]
[1680615772993,115.3696,20.876,20.86,20.0]
[1680615773793,115.3696,20.876,20.861,17.0]
[1680615774799,115.3696,20.876,20.86,20.0]
[1680615774996,115.3696,20.876,20.859,20.0]
[1680615775188,115.3696,20.876,20.86,17.0]
[1680615775390,54.53,20.87,20.852,20.0]
[1680615775590,54.53,20.87,20.845,118.8589]
[1680615775905,54.53,20.87,20.847,20.0]
[1680615776095,54.53,20.87,20.848,20.0]
[1680615776490,54.53,20.87,20.849,20.0]
[1680615777195,54.53,20.87,20.85,17.0]
[1680615778006,54.53,20.87,20.851,20.0]
[1680615778304,54.53,20.87,20.852,17.0]
[1680615786606,54.53,20.87,20.853,20.0]
[1680615786802,54.53,20.87,20.854,17.0]
[1680615787015,115.3696,20.876,20.855,20.0]
[1680615787311,115.3696,20.876,20.856,17.0]
[1680615787506,115.3696,20.876,20.857,20.0]
[1680615787712,115.3696,20.876,20.858,17.0]
[1680615788010,115.3696,20.876,20.859,20.0]
[1680615788212,115.3696,20.876,20.86,17.0]
[1680615789400,115.3696,20.876,20.859,20.0]
[1680615789604,115.3696,20.876,20.854,20.0]
[1680615789913,20.0,20.875,20.854,20.0]
[1680615790099,54.53,20.87,20.854,20.0]
[1680615790299,54.53,20.87,20.852,20.0]
[1680615791314,54.53,20.87,20.853,17.0]
[1680615791504,54.53,20.87,20.854,20.0]
[1680615791707,54.53,20.87,20.851,14.71819206]
[1680615791904,54.53,20.87,20.845,118.8589]
[1680615792217,54.53,20.87,20.849,20.0]
[1680615792899,54.53,20.87,20.85,17.0]
[1680615793400,54.53,20.87,20.851,20.0]
[1680615793600,54.53,20.87,20.852,17.0]
[1680615794400,54.53,20.87,20.85,17.0]
[1680615794805,54.53,20.87,20.849,17.0]
[1680615795306,54.53,20.87,20.85,20.0]
[1680615795500,54.53,20.87,20.851,17.0]
[1680615797018,20.0,20.869,20.848,7.12336208]
[1680615797230,54.53,20.87,20.849,20.0]
[1680615797906,20.0,20.869,20.849,20.0]
[1680615798319,20.0,20.869,20.85,17.0]
[1680615799116,54.53,20.87,20.85,17.0]
[1680615799325,54.53,20.87,20.85,7.12336208]
[1680615799516,54.53,20.87,20.851,17.0]
[1680615799722,54.53,20.87,20.852,20.0]
[1680615799934,54.53,20.87,20.853,17.0]
[1680615800336,54.53,20.87,20.853,24.12336208]
[1680615801522,115.3696,20.876,20.854,20.0]
[1680615801840,115.3696,20.876,20.855,44.12336208]
[1680615802143,115.3696,20.876,20.856,20.0]
[1680615802321,115.3696,20.876,20.857,17.0]
[1680615802529,115.3696,20.876,20.858,20.0]
[1680615802734,115.3696,20.876,20.859,37.0]
[1680615803228,115.3696,20.876,20.859,17.0]
[1680615803432,115.3696,20.876,20.86,7.12336208]
[1680615803631,115.3696,20.876,20.861,17.0]
[1680615804132,115.3696,20.876,20.862,7.12336208]
[1680615804325,115.3696,20.876,20.863,17.0]
[1680615804841,115.3696,20.876,20.864,7.12336208]
[1680615805045,115.3696,20.876,20.865,17.0]
[1680615805542,115.3696,20.876,20.866,7.12336208]
[1680615805931,115.3696,20.876,20.867,17.0]
[1680615806434,115.3696,20.876,20.866,7.12336208]
[1680615810047,20.0,20.884,20.867,17.0]
[1680615810238,108.5742,20.883,20.868,20.0]
[1680615810444,108.5742,20.883,20.869,17.0]
[1680615810632,108.5742,20.883,20.87,20.0]
[1680615810950,108.5742,20.883,20.871,37.0]
[1680615811339,108.5742,20.883,20.871,44.12336208]
[1680615811533,108.5742,20.883,20.872,7.12336208]
[1680615811735,108.5742,20.883,20.873,17.0]
[1680615812746,108.5742,20.883,20.872,7.12336208]
[1680615812948,108.5742,20.883,20.873,17.0]
[1680615813453,20.0,20.882,20.871,20.0]
[1680615813656,20.0,20.882,20.865,7.12336208]
[1680615813846,20.0,20.882,20.866,20.0]
[1680615814330,0.67707807,20.882,20.866,20.0]
[1680615814530,20.67707807,20.882,20.866,7.12336208]
[1680615814932,0.67707807,20.882,20.867,20.0]
[1680615815338,0.67707807,20.882,20.867,27.12336208]
[1680615815845,0.67707807,20.882,20.868,17.0]
[1680615816145,0.67707807,20.882,20.869,20.0]
[1680615816340,0.67707807,20.882,20.87,17.0]
[1680615816537,0.67707807,20.882,20.871,20.0]
[1680615817261,0.67707807,20.882,20.872,17.0]
[1680615817431,0.67707807,20.882,20.873,20.0]
[1680615817636,0.67707807,20.882,20.874,17.0]
[1680615818147,20.0,20.884,20.875,7.12336208]
[1680615818342,20.0,20.884,20.876,17.0]
[1680615819239,0.67627528,20.881,20.876,17.0]
[1680615819841,0.67627528,20.881,20.876,24.12336208]
[1680615820253,20.0,20.884,20.876,24.12336208]
[1680615821843,20.0,20.884,20.871,20.0]
[1680615822044,20.0,20.884,20.869,20.0]
[1680615822244,0.67788079,20.883,20.87,20.0]
[1680615822448,0.67788079,20.883,20.872,7.12336208]
[1680615822927,0.67788079,20.883,20.873,20.0]
[1680615823129,0.67788079,20.883,20.874,17.0]
[1680615823329,0.67788079,20.883,20.874,24.12336208]
[1680615823528,0.67788079,20.883,20.875,7.12336208]
[1680615823756,0.67788079,20.883,20.876,17.0]
[1680615824255,0.67788079,20.883,20.876,24.12336208]
[1680615824445,0.67788079,20.883,20.877,40.0]
[1680615824757,0.67788079,20.883,20.878,24.12336208]
[1680615825051,0.67788079,20.883,20.879,27.12336208]
[1680615825351,0.67788079,20.883,20.88,17.0]
[1680615825558,0.67788079,20.883,20.881,20.0]
[1680615825851,0.67788079,20.883,20.882,17.0]
[1680615827234,0.67788079,20.883,20.881,20.0]
[1680615827435,0.67788079,20.883,20.873,20.0]
[1680615828254,0.67788079,20.883,20.873,27.12336208]
[1680615828550,0.67788079,20.883,20.873,7.12336208]
[1680615831138,0.67788079,20.883,20.874,17.0]
[1680615831533,0.67788079,20.883,20.875,7.12336208]
[1680615832161,0.67788079,20.883,20.876,17.0]
[1680615832753,0.67788079,20.883,20.877,7.12336208]
[1680615833138,0.67788079,20.883,20.878,17.0]
[1680615833853,0.67788079,20.883,20.877,7.12336208]
[1680615834153,94.089,20.889,20.877,7.12336208]
[1680615835839,94.089,20.889,20.878,17.0]
[1680615838355,20.40049494,20.888,20.877,7.12336208]
[1680615838662,0.40049494,20.888,20.877,7.12336208]
[1680615839038,20.0,20.892,20.877,7.12336208]
[1680615839859,20.0,20.892,20.878,17.0]
[1680615840463,20.0,20.894,20.878,17.0]
[1680615840650,114.9899,20.895,20.878,17.0]
[1680615840845,20.0,20.894,20.878,17.0]
[1680615842062,0.40206857,20.893,20.878,17.0]
[1680615842365,0.40206857,20.893,20.878,24.12336208]
[1680615844562,0.40206857,20.893,20.871,131.6921]
[1680615844563,41.0,20.89,20.871,20.0]
[1680615844756,234.4709,20.889,20.871,7.12336208]
[1680615845150,20.0,20.888,20.871,7.12336208]
[1680615845971,20.40049494,20.888,20.872,17.0]
[1680615846847,0.40049494,20.888,20.872,17.0]
[1680615847066,0.40049494,20.888,20.872,24.12336208]
[1680615851651,0.40049494,20.888,20.872,7.12336208]
[1680615851856,17.40049494,20.888,20.867,116.151]
[1680615852079,0.40049494,20.888,20.868,20.0]
[1680615853072,19.152,20.885,20.869,17.0]
[1680615853377,19.152,20.885,20.87,20.0]
[1680615853760,20.0,20.884,20.87,20.0]
[1680615853975,20.0,20.884,20.868,20.0]
[1680615855386,19.152,20.885,20.868,20.0]
[1680615855964,20.0,20.884,20.868,20.0]
[1680615856683,17.0,20.883,20.867,20.0]
[1680615856879,40.84,20.88,20.867,20.0]
[1680615857982,20.39766051,20.879,20.867,20.0]
[1680615858666,20.39766051,20.879,20.866,20.0]
[1680615858863,37.0,20.878,20.866,20.0]
[1680615859058,20.0,20.877,20.866,20.0]
[1680615859582,20.0,20.876,20.866,20.0]
[1680615861088,20.0,20.877,20.866,20.0]
[1680615866582,110.0668,20.878,20.866,20.0]
[1680615867181,226.9032,20.878,20.866,20.0]
[1680615867378,226.9032,20.878,20.858,20.0]
[1680615867587,226.9032,20.878,20.859,37.0]
[1680615868272,20.0,20.877,20.859,37.0]
[1680615869588,19.161,20.876,20.856,113.2843]
[1680615869885,20.0,20.874,20.846,20.0]
[1680615870084,20.0,20.874,20.847,111.7688]
[1680615870273,20.0,20.874,20.847,118.89216208]
[1680615870473,20.0,20.874,20.848,7.12336208]
[1680615870779,20.0,20.874,20.849,20.0]
[1680615871087,20.0,20.874,20.85,27.12336208]
[1680615871277,20.0,20.874,20.851,17.0]
[1680615871471,20.0,20.874,20.851,24.12336208]
[1680615871783,20.0,20.874,20.853,20.0]
[1680615871992,20.0,20.874,20.854,17.0]
[1680615872284,40.92,20.87,20.854,17.0]
[1680615872585,40.92,20.87,20.84,55.72335717]
[1680615872890,20.0,20.868,20.848,7.12336208]
[1680615873076,113.3405,20.867,20.848,27.12336208]
[1680615873586,113.3405,20.867,20.848,20.0]
[1680615873787,20.0,20.866,20.846,20.0]
[1680615875489,20.0,20.866,20.846,40.0]
[1680615875680,20.0,20.866,20.846,20.0]
[1680615876286,20.0,20.866,20.847,17.0]
[1680615876488,20.0,20.866,20.848,20.0]
[1680615877091,19.171,20.865,20.848,20.0]
[1680615877282,19.171,20.865,20.846,20.0]
[1680615877886,19.171,20.865,20.846,27.12336208]
[1680615878388,19.171,20.865,20.847,17.0]
[1680615878595,19.171,20.865,20.848,20.0]
[1680615878985,20.0,20.866,20.848,20.0]
[1680615879288,20.0,20.866,20.849,17.0]
[1680615879488,20.0,20.866,20.847,17.0]
[1680615879489,17.0,20.865,20.85,20.0]
[1680615880188,17.0,20.865,20.847,20.0]
[1680615880393,20.0,20.864,20.847,20.0]
[1680615880596,17.0,20.865,20.847,20.0]
[1680615881284,20.0,20.866,20.847,20.0]
[1680615881878,20.0,20.866,20.855,20.0]
[1680615882089,56.171,20.865,20.855,20.0]
[1680615882394,39.171,20.865,20.855,20.0]
[1680615883394,20.0,20.864,20.855,20.0]
[1680615883575,39.171,20.865,20.855,20.0]
[1680615883778,20.0,20.865,20.855,20.0]
[1680615883979,20.0,20.866,20.855,20.0]
[1680615885183,20.0,20.865,20.855,20.0]
[1680615885380,20.0,20.866,20.855,20.0]
[1680615885780,113.3405,20.867,20.855,20.0]
[1680615891903,113.3405,20.867,20.856,17.0]
[1680615892192,19.164,20.873,20.855,20.0]
[1680615893282,38.363199,20.876,20.856,17.0]
[1680615893482,20.0,20.875,20.856,17.0]
[1680615893682,38.363199,20.876,20.857,20.0]
[1680615893887,38.363199,20.876,20.858,17.0]
[1680615894105,38.363199,20.876,20.858,37.0]
[1680615894300,38.363199,20.876,20.858,44.12336208]
[1680615894495,38.363199,20.876,20.859,27.12336208]
[1680615894787,38.363199,20.876,20.86,37.0]
[1680615894993,38.363199,20.876,20.861,20.0]
[1680615895700,38.363199,20.876,20.862,17.0]
[1680615896705,38.363199,20.876,20.86,27.12336208]
[1680615896706,38.363199,20.876,20.861,17.0]
[1680615897596,20.0,20.875,20.861,17.0]
[1680615897800,38.363199,20.876,20.861,17.0]
[1680615898987,38.363199,20.876,20.86,27.12336208]
[1680615899204,38.363199,20.876,20.86,20.0]
[1680615899609,20.0,20.875,20.858,20.0]
[1680615899908,20.0,20.875,20.859,17.0]
[1680615900091,20.0,20.875,20.86,20.0]
[1680615900505,20.0,20.873,20.86,20.0]
[1680615900691,20.0,20.873,20.857,20.0]
[1680615902006,20.0,20.873,20.856,119.6528]
[1680615902402,20.0,20.875,20.856,119.6528]
[1680615902605,20.0,20.875,20.857,37.0]
[1680615902809,38.363199,20.876,20.857,37.0]
[1680615903007,20.0,20.875,20.857,37.0]
[1680615903203,20.0,20.875,20.857,44.12336208]
[1680615904318,20.0,20.875,20.857,162.03556208]
[1680615904611,40.0,20.877,20.857,162.03556208]